Workbook

Sheet Introduction
B2: Manure Distribution Cost Analyzer
C3: Updated: 8/2008
C5: Developed by
C6: Raymond E. Massey, Crops Economist
C7: University of Missouri
C8: Department of Agricultural Economics
C9: Commercial Agriculture Program
C11: The Manure Distribution Cost Analyzer is intended to be used by livestock producers to estimate the cost of distributing manure on land. It allows the user to enter farm specific information such as the equipment being used, the distance to land receiving the manure, and market prices. The program then computes the cost and time required to distribute manure on the land.
C13: The Manure Distribution Cost Analyzer does not take into account any costs of manure storage and handling prior to land application. It assumes that regardless of how you apply the manure you have to store it and eventually load it on a spreader for land application. The relevant question is how much time and money does it take me to load the spreader, drive to the field, and spread the manure.
C15: Start by going to the sheet titled "Input." Enter the appropriate numbers in the tan shaded cells. The critical results of time required and total dollars are shown on this page. This page only does a single field at a time. You must estimate how many acres the spreader is used for a year (not just the field you are considering).
C17: To determine the cost of spreading on all fields in a particular year click on the sheet titled "Fields." Enter the appropriate information for all of the fields that will receive manure during the year and click on the button labeled "Compute." The program will enter all of the information into the appropriate locations and give information for each field and for the total. Note: you must enable your macros to run this spreadsheet.
C19: This worksheet is for educational purposes only. Its use is not supported by the University of Missouri and the user assumes all risks associated with its use.

Sheet Input
B2: Manure Distribution Cost Analyzer
C4: Equipment: | F4: Discriptions and units
C6: Tractor
C7: List price | D7: 125000 | F7: 200 hp tractor
C8: Years to replace | D8: 12 | F8: years
C9: Annual tractor use other than manure application | D9: 400 | F9: hours
C10: Tractor Size | D10: 200 | F10: PTO hp
C12: Manure handling system | D12: Liquid | I12: =IF(D12=J12,1,IF(D12=J13,2,"-")) -> 2 | J12: Dry
J13: Liquid
C14: Spreader
C15: List price | D15: 40000 | F15: 6,000 gallon tank
C16: Years to replace | D16: 10 | F16: years
C17: Annual spreader use | D17: 192 | F17: acres
C18: Spreader capacity | D18: 6 | F18: =IF($I$12=1,"tons",IF($I$12=2,"1,000 gallons",#VALUE!)) -> 1,000 gallons
C20: Description of Livestock and Farming Situation:
C22: Acres in the field | D22: 32 | F22: acres
C23: Distance to field | D23: 1 | F23: miles
C24: Road speed | D24: 10 | F24: miles/hour
C25: Field speed | D25: 4 | F25: miles/hour
C26: Swath width | D26: 15 | F26: feet
C27: Manure application rate | D27: 5 | F27: =IF($I$12=1,"tons/acre",IF($I$12=2,"1,000 gallons/acre",#VALUE!)) -> 1,000 gallons/acre
C28: Calculated manure discharge rate | D28: =RateApply1*1000/43560*SWIDTH1*5280*FLDSPEED1/60 -> 606.0606061 | F28: gallons/minute
D29: =IF(D28>1100,"Confirm that this discharge rate can be achieved. It may be too high for current equipment",IF(D28<300,"Confirm that this discharge rate can be achieved. It may be too low for current equipment.","")) -> 
C30: Loading time per load | D30: 10 | F30: minutes/load
C31: Total manure available | D31: 960 | F31: =IF($I$12=1,"tons",IF($I$12=2,"1,000 gallons",#VALUE!)) -> 1,000 gallons
C32: Total manure spread given input above | D32: =acres1*RateApply1 -> 160 | F32: =IF($I$12=1,"tons",IF($I$12=2,"1,000 gallons",#VALUE!)) -> 1,000 gallons
D33: =IF(TOTALTONS1>D32,"Need more land to use all manure available",IF(TOTALTONS1<D32,"Need more manure to spread it on all the land entered.","")) -> Need more land to use all manure available
C34: Prices:
C36: Fuel | D36: 3.25 | F36: dollars/gallon
C37: Labor | D37: 11 | F37: dollars/hour
C38: Interest | D38: 0.08 | F38: percent/year
C39: Insurance | D39: 0.01 | F39: percent/year
C41: Results:
C43: Hours Required | D43: =TOTALTIME -> 20.01258806
C44: Total Cost | D44: =TOTALCOST -> 2584.316833

Sheet Fields
B2: Manure Distribution Cost Analyzer
C4: Cost of manure distribution calculations:
E6: Total manure applied | I6: =SUMPRODUCT(E11:AQ11,E13:AQ13) -> 960 | K6: =Input!F31 -> 1,000 gallons
E7: Total manure available | I7: =TOTALTONS1 -> 960 | K7: =Input!F31 -> 1,000 gallons
D8: Total | E8: =IF(I6<TOTALTONS1,"Not all manure has been applied. Need more fields.",IF(I6>TOTALTONS1,"More fields received manure than is available. Reduce the acreage in fields.")) -> FALSE
C9: Cropping system | E9: Corn Field 1 | G9: SB Field 1 | I9: Corn Field 2 | K9: SB Field 2 | M9: Corn Field 3
C10: Field number | E10: 1 | G10: 2 | I10: 3 | K10: 4 | M10: 5 | O10: 6 | Q10: 7 | S10: 8 | U10: 9 | W10: 10 | Y10: 11 | AA10: 12 | AC10: 13 | AE10: 14 | AG10: 15 | AI10: 16 | AK10: 17 | AM10: 18 | AO10: 19 | AQ10: 20
C11: Acres in field | D11: =SUM(E11:AQ11) -> 192 | E11: 40 | G11: 40 | H11: 0 | I11: 40 | K11: 40 | M11: 32
C12: Distance to field (miles) | E12: 0.5 | G12: 0.5 | H12: 0 | I12: 1 | K12: 0.75 | M12: 1
C13: =CONCATENATE("Manure application rate ", IF(Input!$I$12=1,"(tons applied)",IF(Input!$I$12=2,"(1,000 gallons applied)",#VALUE!))) -> Manure application rate (1,000 gallons applied) | E13: 5 | G13: 5 | H13: 0 | I13: 5 | K13: 5 | M13: 5
C15: Total cost | D15: =SUM(E15:AQ15) -> 14883.6735 | E15: 2970.0737 | G15: 2970.0737 | I15: 3249.4483 | K15: 3109.761 | M15: 2584.3168
C16: Road costs | D16: 4218.557 | E16: 744.999 | G16: 744.999 | I16: 1024.3737 | K16: 884.6864 | M16: 819.4989
C17: Field costs | D17: 10665.1163 | E17: 2225.0746 | G17: 2225.0746 | I17: 2225.0746 | K17: 2225.0746 | M17: 1764.8179
C19: Total application time (hours) | D19: =SUM(E19:AQ19) -> 112.651477 | E19: 21.90972222 | G19: 21.90972222 | I19: 25.24305556 | K19: 23.57638889 | M19: 20.01258806
C20: Loading time (hours) | D20: 26.66666667 | E20: 5.555555556 | G20: 5.555555556 | I20: 5.555555556 | K20: 5.555555556 | M20: 4.444444444
C21: Road travel time (hours) | D21: 23.66666667 | E21: 3.333333333 | G21: 3.333333333 | I21: 6.666666667 | K21: 5 | M21: 5.333333333
C22: Field travel time (hours) | D22: 9.518143619 | E22: 2.020833333 | G22: 2.020833333 | I22: 2.020833333 | K22: 2.020833333 | M22: 1.434810286
C23: Field application time (hours) | D23: 52.8 | E23: 11 | G23: 11 | I23: 11 | K23: 11 | M23: 8.8
C25: Total loaded miles | D25: 118.3333333 | E25: =E12*E11*E13/SCAPACITY1 -> 16.66666667 | G25: =G12*G11*G13/SCAPACITY1 -> 16.66666667 | I25: 33.33333333 | K25: 25 | M25: 26.66666667 | O25: 0 | Q25: 0 | S25: 0 | U25: 0 | W25: 0 | Y25: 0 | AA25: 0 | AC25: 0 | AE25: 0 | AG25: 0 | AI25: 0 | AK25: 0 | AM25: 0 | AO25: 0 | AQ25: 0
C26: Total road miles | D26: 236.6666667 | E26: =E25*2 -> 33.33333333 | G26: 33.33333333 | I26: 66.66666667 | K26: 50 | M26: 53.33333333 | O26: 0 | Q26: 0 | S26: 0 | U26: 0 | W26: 0 | Y26: 0 | AA26: 0 | AC26: 0 | AE26: 0 | AG26: 0 | AI26: 0 | AK26: 0 | AM26: 0 | AO26: 0 | AQ26: 0
C27: Loads per field | D27: 160 | E27: =E11*E13/SCAPACITY1 -> 33.33333333 | G27: 33.33333333 | I27: 33.33333333 | K27: 33.33333333 | M27: 26.66666667 | O27: 0 | Q27: 0 | S27: 0 | U27: 0 | W27: 0 | Y27: 0 | AA27: 0 | AC27: 0 | AE27: 0 | AG27: 0 | AI27: 0 | AK27: 0 | AM27: 0 | AO27: 0 | AQ27: 0
C29: Average distance hauled (miles) | D29: =SUMPRODUCT(E27:AQ27,E12:AQ12)/D27 -> 0.7395833333
C30: =CONCATENATE("Average cost per ", IF(Input!$I$12=1,"ton",IF(Input!$I$12=2,"1,000 gallons",#VALUE!)), " hauled") -> Average cost per 1,000 gallons hauled | D30: =AppCost/I6 -> 15.50382656

Sheet Manure Costs
B2: Manure Distribution Cost Analyzer
B3: Cost of transporting and distributing manure
C5: Description of operation:
C7: Total Manure Applied | D7: =Input!D31 -> 960 | E7: =Input!F31 -> 1,000 gallons
C8: Application Rate | D8: =Input!D27 -> 5 | E8: =Input!F27 -> 1,000 gallons/acre
C9: Acres Covered | D9: =Input!D22 -> 32 | E9: Acres
C11: Costs:
C13: Operating Costs | D13: Total | E13: Per Acre | F13: =IF(Input!$I$12=1,"Per ton",IF(Input!$I$12=2,"Per 1,000 gal.",#VALUE!)) -> Per 1,000 gal.
C14: Spreader | D14: =Input!D22*'Machinery Costs'!D39 -> 18.09885195 | E14: =D14/Input!$D$22 -> 0.5655891233 | F14: =E14/Input!$D$27 -> 0.1131178247
C15: Tractor in Field | D15: ='Machinery Costs'!D21*D32+'Machinery Costs'!D21*D31 -> 565.2266261 | E15: =D15/Input!$D$22 -> 17.66333207 | F15: =E15/Input!$D$27 -> 3.532666413
C16: Tractor on Road | D16: ='Machinery Costs'!D21*(D30+TimeLoad) -> 539.9865938 | E16: =D16/Input!$D$22 -> 16.87458106 | F16: =E16/Input!$D$27 -> 3.374916211
C17: Total Operating Costs | D17: =SUM(D14:D16) -> 1123.312072 | E17: =D17/Input!$D$22 -> 35.10350225 | F17: =E17/Input!$D$27 -> 7.020700449
C19: Ownership Costs
C20: Spreader | D20: ='Machinery Costs'!D37*Input!D22 -> 888.9151124 | E20: =D20/Input!$D$22 -> 27.77859726 | F20: =E20/Input!$D$27 -> 5.555719452
C21: Tractor in Field | D21: ='Machinery Costs'!D16*D32+'Machinery Costs'!D16*D31 -> 292.577302 | E21: =D21/Input!$D$22 -> 9.143040687 | F21: =E21/Input!$D$27 -> 1.828608137
C22: Tractor on Road | D22: ='Machinery Costs'!D16*(D30+TimeLoad) -> 279.5123468 | E22: =D22/Input!$D$22 -> 8.734760837 | F22: =E22/Input!$D$27 -> 1.746952167
C23: Total Ownership Costs | D23: =SUM(D20:D22) -> 1461.004761 | E23: =D23/Input!$D$22 -> 45.65639879 | F23: =E23/Input!$D$27 -> 9.131279757
C24: Total Cost | D24: =D23+D17 -> 2584.316833 | E24: =D24/Input!$D$22 -> 80.75990103 | F24: =E24/Input!$D$27 -> 16.15198021
C26: Road Costs | D26: =D16+D22 -> 819.4989406 | E26: =E16+E22 -> 25.60934189 | F26: =F16+F22 -> 5.121868379
C27: Field Costs | D27: =D24-D26 -> 1764.817892 | E27: =E24-E26 -> 55.15055914 | F27: =F24-F26 -> 11.03011183
C29: Loading Time (hours) | D29: =Input!D27/Input!D18*Input!D30/60*Input!D22 -> 4.444444444 | E29: =D29/Input!$D$22 -> 0.1388888889 | F29: =E29/Input!$D$27 -> 0.02777777778
C30: Road Travel Time (hours) | D30: =Input!D23/Input!D24*Input!D27/Input!D18*Input!D22*2 -> 5.333333333 | E30: =D30/Input!$D$22 -> 0.1666666667 | F30: =E30/Input!$D$27 -> 0.03333333333
C31: Field Travel Time (hours) | D31: =2*(Input!D26*(TRUNC(Workspace!C20+1)-1)*(Workspace!C21^2-Workspace!C21)/2+Workspace!C19*Workspace!C21*((TRUNC(Workspace!C20+1)-1)^2-(TRUNC(Workspace!C20+1)-1))/2+Workspace!C23*(TRUNC(Workspace!C20+1)-1)*Workspace!C19+Workspace!C24*(Workspace!C23^2-Workspace!C23)/2)/(Input!D25*5280) -> 1.434810286 | E31: =D31/Input!$D$22 -> 0.04483782142 | F31: =E31/Input!$D$27 -> 0.008967564285
C32: Field Application Time (hours) | D32: =1/(Input!D25*5280*Input!D26/43560)*Input!D22*2 -> 8.8 | E32: =D32/Input!$D$22 -> 0.275 | F32: =E32/Input!$D$27 -> 0.055
C33: Total Hours Application Time | D33: =SUM(D29:D32) -> 20.01258806 | E33: =SUM(E29:E32) -> 0.625393377 | F33: =SUM(F29:F32) -> 0.1250786754

Sheet Machinery Costs
B2: Manure Distribution Cost Analyzer
B3: Breakdown of Ownership and Operating Costs
C5: Tractor
C6: List price | D6: =TPRICE1 -> 125000
C7: Years to replace | D7: =TYEARS1 -> 12 | F7: years
C8: Annual use other than manure application | D8: =THOURS1 -> 400 | F8: hours
C9: Annual use with manure application | D9: =D8+AppTime -> 512.651477 | F9: hours
C10: PTO HP | D10: =Input!D10 -> 200
C12: Salvage value | D12: =IF(Input!D10<80,+Workspace!B15,IF(Input!D10>149,Workspace!D15,Workspace!C15)) -> 36176.35674
C13: Depreciation | D13: =(Input!D7-D12)/Workspace!C34 -> 14.43860128 | F13: /hour
C14: Interest | D14: =(Input!D7+D12)/2*Input!D38/D9 -> 12.57590109 | F14: /hour
C15: Insurance | D15: =(Input!D7+D12)/2*Input!D39/D9 -> 1.571987637 | F15: /hour
C16: Total ownership costs | D16: =SUM(D13:D15) -> 28.58649001 | F16: /hour
C18: Repair | D18: =(Input!D7*Workspace!C9*(Workspace!C34/1000)^Workspace!C10)/Workspace!C34 -> 5.382840508 | F18: /hour
C19: Fuel | D19: =Input!D36*Input!D10*Workspace!C11*(0.52*Workspace!C11+0.77-0.04*(738*Workspace!C11+173)^0.5)*0.9*1.1 -> 36.64306113 | F19: /hour
C20: Labor | D20: =Input!D37*1.2 -> 13.2 | F20: /hour
C21: Total operating costs | D21: =SUM(D18:D20) -> 55.22590164 | F21: /hour
C23: Total Costs | D23: =D21+D16 -> 83.81239165 | F23: /hour
C25: Spreader
C27: Acres per hour | D27: =D31/(TotalTime1-D8) -> 1.704371795 | F27: acres/hour
C29: List price | D29: =SPRICE1 -> 40000
C30: Years to replace | D30: =Input!D16 -> 10 | F30: years
C31: Annual use | D31: =totalacre1 -> 192 | F31: acres
C33: Salvage value | D33: =Input!D15*(1.29956-0.45116*Input!D16^0.25)^2.22 -> 8481.987739 | F33: /acre | G33: =D34/$D$27 -> 9.631485004 | I33: /hour
C34: Depreciation | D34: =(Input!D15-D33)/Workspace!E34 -> 16.41563139 | F34: /acre | G34: =D35/$D$27 -> 5.926180039 | I34: /hour
C35: Interest | D35: =(Input!D15+D33)/2*Input!D38/Input!D17 -> 10.10041411 | F35: /acre | G35: =D36/$D$27 -> 0.7407725049 | I35: /hour
C36: Insurance | D36: =(Input!D15+D33)/2*Input!D39/Input!D17 -> 1.262551764 | F36: /acre | G36: =D37/$D$27 -> 16.29843755 | I36: /hour
C37: Total ownership costs | D37: =SUM(D34:D36) -> 27.77859726 | F37: /acre | G37: =D39/$D$27 -> 0.3318460942 | I37: /hour
C39: Repair | D39: =(Input!D15*Workspace!D9*(Workspace!E34/Workspace!C27/1000)^Workspace!D10)/Workspace!E34 -> 0.5655891233 | F39: /acre | I39: /hour
C40: Fuel | F40: /acre | I40: /hour
C41: Labor | F41: /acre | I41: /hour
C42: Total operating costs | D42: =SUM(D39:D41) -> 0.5655891233 | F42: /acre | G42: =D42/$D$27 -> 0.3318460942 | I42: /hour
C44: Total Costs | D44: =D39+D37 -> 28.34418639 | F44: /acre | G44: =D44/$D$27 -> 16.63028364 | I44: /hour
C46: Tractor and Spreader
C48: Depreciation | D48: =G33+D13 -> 24.07008628 | F48: /hour
C49: Interest | D49: =G34+D14 -> 18.50208113 | F49: /hour
C50: Insurance | D50: =G35+D15 -> 2.312760142 | F50: /hour
C51: Total ownership costs | D51: =G36+D16 -> 44.88492756 | F51: /hour
C53: Repair | D53: =G37+D18 -> 5.714686602 | F53: /hour
C54: Fuel | D54: =G40+D19 -> 36.64306113 | F54: /hour
C55: Labor | D55: =G41+D20 -> 13.2 | F55: /hour
C56: Total operating costs | D56: =G42+D21 -> 55.55774773 | F56: /hour
C58: Total Costs | D58: =G44+D23 -> 100.4426753 | F58: /hour
C60: Fixed cost as a percent of total costs | D60: =(D51+D53)/$D$58 -> 0.5037660936
C61: Fuel cost as a percent of total costs | D61: =D54/$D$58 -> 0.3648156625
C62: Labor cost as a percent of total costs | D62: =D55/$D$58 -> 0.1314182439

Sheet Workspace (hidden)
B2: Engineering Factors | F2: Default
C3: Tractor | D3: Spreader
B4: Depreciation Factors (source: 1991 ASAE Standards)
B5: DF1 | C5: 0.68 | D5: 0.6
B6: DF2 | C6: 0.92 | D6: 0.885
B8: Repair Coefficients (used grain cart coefficients for spreader)
B9: RF1 | C9: 0.007 | D9: 0.16
B10: RF2 | C10: 2 | D10: 1.6
B11: Engine Loading | C11: 0.67
B13: Tractor Salvage Value Table
B14: <80 hp | C14: 80-149 hp | D14: >150 hp
B15: =Input!$D$7*(0.88507-0.05827*Input!$D$8^0.46-0.00018*'Machinery Costs'!$D$9^0.9)^2.17 -> 49554.84666 | C15: =Input!$D$7*(0.9769-0.02301*Input!$D$8^0.76-0.0012*'Machinery Costs'!$D$9^0.6)^3.85 -> 46643.1943 | D15: =Input!$D$7*(1.18985-0.22231*Input!$D$8^0.35-0.00766*'Machinery Costs'!$D$9^0.39)^2.22 -> 36176.35674
B17: FieldLength | C17: =(Input!D22*43560)^0.5/5280 -> 0.2236067977 | D17: miles
B18: Field Width | C18: =(Input!D22*43560)^0.5/5280 -> 0.2236067977
B19: Load Length (R) | C19: =1/(Input!D27/Input!D18)*43560/Input!D26 -> 3484.8 | D19: feet
B20: NumberLengths (m) | C20: =C18*5280/C19 -> 0.3387981784
B21: Loads per tier (n) | C21: =C17*5280/Input!D26 -> 78.70959281
B22: Acresperlength | C22: =C21*Input!D26*C19/43560 -> 94.45151137
B23: n' | C23: =C17*5280/C24 -> 26.66666667
B24: w' | C24: =C19/(C25*C19)*Input!D26 -> 44.27414595
B25: R' | C25: =C20-TRUNC(C20) -> 0.3387981784
B26: Field Efficiency | C26: 0.8
B27: Acres per Hour | C27: =Input!D25*Input!D26*5280/43560*C26 -> 5.818181818
B30: Add'l Acres Needing Commercial Fertilizer
B31: Add'l Acres Needed to Use All Manure
C33: Tractor | E33: Spreader
B34: Age at Trade | C34: =Input!D8*'Machinery Costs'!D9 -> 6151.817723 | D34: hours | E34: =Input!D16*Input!D17 -> 1920 | F34: acres
E35: =E34/C27 -> 330 | F35: hours
